fUST/lending_fUST_20250812
["ID","MTS","AMOUNT","RATE_DAILY","PERIOD"]
[378653560,1754944250282,-371.458796,0.00019452,2]
[378653561,1754944250292,-371.458796,0.00019452,2]
[378653562,1754944250301,-159.451413,0.00019452,2]
[378653563,1754944250311,-159.451413,0.00019452,2]
[378653564,1754944250320,-460.0,0.00019452,2]
[378653565,1754944250334,-581.2765512,0.00019452,2]
[378653566,1754944250343,-460.0,0.00019452,2]
[378653567,1754944250353,-371.458796,0.00019452,2]
[378653568,1754944250362,-159.451413,0.00019452,2]
[378653569,1754944250372,-371.458796,0.00019452,2]
[378653570,1754944250381,-159.451413,0.00019452,2]
[378653571,1754944250391,-1216.33,0.00019452,2]
[378653572,1754944250401,-460.0,0.00019452,2]
[378653573,1754944250410,-460.0,0.00019452,2]
[378653574,1754944250420,-1257.0,0.00019452,2]
[378653575,1754944250429,-2391.8,0.00019452,2]
[378653576,1754944250439,-460.0,0.00019452,2]
[378653577,1754944250448,-207.24806,0.00019452,2]
[378653578,1754944250457,-183.14996323,0.00019452,2]
[378653579,1754944250467,-460.0,0.00019452,2]
[378653580,1754944250476,-460.0,0.00019452,2]
[378653581,1754944250486,-460.0,0.00019452,2]
[378653582,1754944250495,-460.0,0.00019452,2]
[378653583,1754944250504,-1225.23,0.00019452,2]
[378653584,1754944250514,-460.0,0.00019452,2]
[378653585,1754944250524,-460.0,0.00019452,2]
[378653586,1754944250533,-738.42,0.00019452,2]
[378653587,1754944250543,-460.0,0.00019452,2]
[378653588,1754944250552,-1621.51,0.00019452,2]
[378653589,1754944250562,-460.0,0.00019452,2]
[378653590,1754944250571,-460.0,0.00019452,2]
[378653591,1754944250582,-553.85,0.00019452,2]
[378653592,1754944250592,-460.0,0.00019452,2]
[378653593,1754944250602,-151.0,0.00019452,2]
[378653594,1754944250611,-151.0,0.00019452,2]
[378653595,1754944250621,-713.45,0.00019452,2]
[378653596,1754944250631,-460.0,0.00019452,2]
[378653597,1754944250640,-460.0,0.00019452,2]
[378653598,1754944250650,-460.0,0.00019452,2]
[378653599,1754944250659,-151.0,0.00019452,2]
[378653600,1754944250670,-203.622262,0.00019452,2]
[378653601,1754944250679,-479.96,0.00019452,2]
[378653602,1754944250688,-795.68,0.00019452,2]
[378653603,1754944250698,-640.52,0.00019452,2]
[378653604,1754944250707,-460.0,0.00019452,2]
[378653605,1754944250717,-460.0,0.00019452,2]
[378653606,1754944250726,-460.0,0.00019452,2]
[378653607,1754944250736,-460.0,0.00019452,2]
[378653608,1754944250745,-460.0,0.00019452,2]
[378653609,1754944250754,-460.0,0.00019452,2]
[378653610,1754944250764,-460.0,0.00019452,2]
[378653611,1754944250774,-460.0,0.00019452,2]
[378653612,1754944250783,-460.0,0.00019452,2]
[378653613,1754944250793,-460.0,0.00019452,2]
[378653614,1754944250802,-490.22135844,0.00019452,2]
[378653615,1754944250813,-460.0,0.00019452,2]
[378653616,1754944250824,-460.0,0.00019452,2]
[378653617,1754944250834,-395.44448093,0.00019452,2]
[378653618,1754944250844,-460.0,0.00019452,2]
[378653619,1754944250854,-460.0,0.00019452,2]
[378653620,1754944250864,-460.0,0.00019452,2]
[378653621,1754944250873,-1451.01,0.00019452,2]
[378653622,1754944250883,-460.0,0.00019452,2]
[378653623,1754944250893,-460.0,0.00019452,2]
[378653624,1754944250903,-2124.623818,0.00019452,2]
[378653625,1754944250912,-2124.623818,0.00019452,2]
[378653626,1754944250922,-460.0,0.00019452,2]
[378653627,1754944250931,-460.0,0.00019452,2]
[378653628,1754944250940,-460.0,0.00019452,2]
[378653629,1754944250950,-2124.623818,0.00019452,2]
[378653630,1754944250959,-2124.623818,0.00019452,2]
[378653631,1754944250969,-1059.1,0.00019452,2]
[378653632,1754944250979,-982.18,0.00019452,2]
[378653633,1754944250989,-4331.71,0.00019452,2]
[378653634,1754944250998,-460.0,0.00019452,2]
[378653635,1754944251007,-460.0,0.00019452,2]
[378653636,1754944251017,-460.0,0.00019452,2]
[378653637,1754944251026,-752.77,0.00019452,2]
[378653638,1754944251036,-460.0,0.00019452,2]
[378653639,1754944251045,-2992.78,0.00019452,2]
[378653640,1754944251055,-460.0,0.00019452,2]
[378653641,1754944251065,-460.0,0.00019452,2]
[378653642,1754944251074,-495.29,0.00019452,2]
[378653643,1754944251085,-460.0,0.00019452,2]
[378653644,1754944251095,-616.95,0.00019452,2]
[378653645,1754944251105,-3159.21,0.00019452,2]
[378653646,1754944251114,-151.0,0.00019452,2]
[378653647,1754944251124,-151.0,0.00019452,2]
[378653648,1754944251134,-151.0,0.00019452,2]
[378653649,1754944251143,-860.47,0.00019452,2]
[378653650,1754944251153,-1922.7,0.00019452,2]
[378653651,1754944251163,-460.0,0.00019452,2]
[378653652,1754944251172,-460.0,0.00019452,2]
[378653653,1754944251182,-460.0,0.00019452,2]
[378653654,1754944251191,-1207.72,0.00019452,2]
[378653655,1754944251201,-1246.7,0.00019452,2]
[378653656,1754944251211,-460.0,0.00019452,2]
[378653657,1754944251221,-13252.66,0.00019452,2]
[378653658,1754944251230,-460.0,0.00019452,2]
[378653659,1754944251240,-907.25,0.00019452,2]
[378653660,1754944251249,-805.91,0.00019452,2]
[378653661,1754944251259,-1421.61,0.00019452,2]
[378653662,1754944251269,-460.0,0.00019452,2]
[378653663,1754944251278,-460.0,0.00019452,2]
[378653664,1754944251288,-593.15,0.00019452,2]
[378653665,1754944251298,-1710.77,0.00019452,2]
[378653666,1754944251308,-460.0,0.00019452,2]
[378653667,1754944251525,-508.53,0.00019452,2]
[378653668,1754944251536,-460.0,0.00019452,2]
[378653669,1754944251546,-566.85,0.00019452,2]
[378653670,1754944251555,-460.0,0.00019452,2]
[378653671,1754944251564,-968.94,0.00019452,2]
[378653672,1754944251573,-1801.48,0.00019452,2]
[378653673,1754944251585,-460.0,0.00019452,2]
[378653674,1754944251594,-460.0,0.00019452,2]
[378653675,1754944251603,-151.0,0.00019452,2]
[378653676,1754944251612,-151.0,0.00019452,2]
[378653677,1754944251621,-151.0,0.00019452,2]
[378653678,1754944251630,-460.0,0.00019452,2]
[378653679,1754944251639,-460.0,0.00019452,2]
[378653680,1754944251648,-758.93,0.00019452,2]
[378653681,1754944251658,-460.0,0.00019452,2]
[378653682,1754944251667,-460.0,0.00019452,2]
[378653683,1754944251676,-460.0,0.00019452,2]
[378653684,1754944251685,-649.11,0.00019452,2]
[378653685,1754944251694,-516.74,0.00019452,2]
[378653686,1754944251704,-460.0,0.00019452,2]
[378653687,1754944251714,-460.0,0.00019452,2]
[378653688,1754944251723,-4873.35,0.00019452,2]
[378653689,1754944251736,-460.0,0.00019452,2]
[378653690,1754944251745,-460.0,0.00019452,2]
[378653691,1754944251754,-460.0,0.00019452,2]
[378653692,1754944251764,-460.0,0.00019452,2]
[378653693,1754944251773,-460.0,0.00019452,2]
[378653694,1754944251782,-1497.21,0.00019452,2]
[378653695,1754944251791,-460.0,0.00019452,2]
[378653696,1754944251800,-460.0,0.00019452,2]
[378653697,1754944251810,-2015.55,0.00019452,2]
[378653698,1754944251823,-460.0,0.00019452,2]
[378653699,1754944251834,-3273.04,0.00019452,2]
[378653700,1754944251843,-460.0,0.00019452,2]
[378653701,1754944251851,-731.83,0.00019452,2]
[378653702,1754944251862,-460.0,0.00019452,2]
[378653703,1754944251871,-1265.45,0.00019452,2]
[378653704,1754944251880,-460.0,0.00019452,2]
[378653705,1754944251891,-151.0,0.00019452,2]
[378653706,1754944251900,-482.28639257,0.00019452,2]
[378653707,1754944251909,-460.0,0.00019452,2]
[378653708,1754944251918,-460.0,0.00019452,2]
[378653709,1754944251927,-460.0,0.00019452,2]
[378653710,1754944251936,-460.0,0.00019452,2]
[378653711,1754944251946,-460.0,0.00019452,2]
[378653712,1754944251955,-462.1576888,0.00019452,2]
[378653713,1754944251965,-460.0,0.00019452,2]
[378653714,1754944251975,-460.0,0.00019452,2]
[378653715,1754944251984,-460.0,0.00019452,2]
[378653716,1754944251994,-460.0,0.00019452,2]
[378653717,1754944252005,-460.0,0.00019452,2]
[378653718,1754944252014,-826.25,0.00019452,2]
[378653719,1754944252023,-1427.08,0.00019452,2]
[378653720,1754944252033,-500.0,0.00019452,2]
[378653721,1754944252042,-1129.07,0.00019452,2]
[378653722,1754944252052,-1411.21,0.00019452,2]
[378653723,1754944252061,-151.0,0.00019452,2]
[378653724,1754944252070,-460.0,0.00019452,2]
[378653725,1754944252081,-460.0,0.00019452,2]
[378653726,1754944252091,-151.0,0.00019452,2]
[378653727,1754944252101,-151.0,0.00019452,2]
[378653728,1754944252111,-460.0,0.00019452,2]
[378653729,1754944252120,-871.51,0.00019452,2]
[378653730,1754944252130,-151.0,0.00019452,2]
[378653731,1754944252139,-460.0,0.00019452,2]
[378653732,1754944252149,-275.746889,0.00019452,2]
[378653733,1754944252158,-460.0,0.00019452,2]
[378653734,1754944252168,-460.0,0.00019452,2]
[378653735,1754944252178,-460.0,0.00019452,2]
[378653736,1754944252187,-262.48677597,0.00019452,2]
[378653737,1754944252197,-460.0,0.00019452,2]
[378653738,1754944252207,-1010.88,0.00019452,2]
[378653739,1754944252216,-4356.6,0.00019452,2]
[378653740,1754944252226,-460.0,0.00019452,2]
[378653741,1754944252235,-460.0,0.00019452,2]
[378653742,1754944252245,-460.0,0.00019452,2]
[378653743,1754944252254,-460.0,0.00019452,2]
[378653744,1754944252265,-4332.9,0.00019452,2]
[378653745,1754944252274,-460.0,0.00019452,2]
[378653746,1754944252284,-460.0,0.00019452,2]
[378653747,1754944252293,-460.0,0.00019452,2]
[378653748,1754944252302,-460.0,0.00019452,2]
[378653749,1754944252312,-719.67,0.00019452,2]
[378653750,1754944252322,-460.0,0.00019452,2]
[378653751,1754944252332,-1536.66,0.00019452,2]
[378653752,1754944252342,-460.0,0.00019452,2]
[378653753,1754944252351,-787.67,0.00019452,2]
[378653754,1754944252360,-1119.95,0.00019452,2]
[378653755,1754944252369,-2972.11,0.00019452,2]
[378653756,1754944252380,-569.87475365,0.00019452,2]
[378653757,1754944252390,-1408.99,0.00019452,2]
[378653758,1754944252400,-569.59,0.00019452,2]
[378653759,1754944252409,-460.0,0.00019452,2]
[378653760,1754944252420,-509.99994878,0.00019452,2]
[378653761,1754944252431,-460.0,0.00019452,2]
[378653762,1754944252440,-460.0,0.00019452,2]
[378653763,1754944252450,-460.0,0.00019452,2]
[378653764,1754944252460,-460.0,0.00019452,2]
[378653765,1754944252469,-460.0,0.00019452,2]
[378653766,1754944252479,-460.0,0.00019452,2]
[378653767,1754944252489,-460.0,0.00019452,2]
[378653768,1754944252498,-460.0,0.00019452,2]
[378653769,1754944252507,-513.3,0.00019452,2]
[378653770,1754944252518,-1696.05,0.00019452,2]
[378653771,1754944252528,-460.0,0.00019452,2]
[378653772,1754944252537,-460.0,0.00019452,2]
[378653773,1754944252546,-460.0,0.00019452,2]
[378653774,1754944252555,-460.0,0.00019452,2]
[378653775,1754944252565,-460.0,0.00019452,2]
[378653776,1754944252575,-460.0,0.00019452,2]
[378653777,1754944252586,-522.72509993,0.00019452,2]
[378653778,1754944252595,-734.19,0.00019452,2]
[378653779,1754944252605,-2472.41,0.00019452,2]
[378653780,1754944252617,-460.0,0.00019452,2]
[378653781,1754944252629,-460.0,0.00019452,2]
[378653782,1754944252639,-498.75,0.00019452,2]
[378653783,1754944252649,-151.0,0.00019452,2]
[378653784,1754944252660,-703.21,0.00019452,2]
[378653785,1754944252671,-151.0,0.00019452,2]
[378653786,1754944252682,-460.0,0.00019452,2]
[378653787,1754944252693,-6364.48,0.00019452,2]
[378653788,1754944252704,-460.0,0.00019452,2]
[378653789,1754944252715,-460.0,0.00019452,2]
[378653790,1754944252725,-632.28,0.00019452,2]
[378653791,1754944252734,-1560.99,0.00019452,2]
[378653792,1754944252744,-460.0,0.00019452,2]
[378653793,1754944252753,-3713.94,0.00019452,2]
[378653794,1754944252762,-460.0,0.00019452,2]
[378653795,1754944252772,-460.0,0.00019452,2]
[378653796,1754944252782,-460.0,0.00019452,2]
[378653797,1754944252791,-1051.03,0.00019452,2]
[378653798,1754944252802,-460.0,0.00019452,2]
[378653799,1754944252812,-460.0,0.00019452,2]
[378653800,1754944252825,-472.8,0.00019452,2]
[378653801,1754944252836,-460.0,0.00019452,2]
[378653802,1754944252846,-460.0,0.00019452,2]
[378653803,1754944252857,-460.0,0.00019452,2]
[378653804,1754944252866,-786.42,0.00019452,2]
[378653805,1754944252876,-738.19,0.00019452,2]
[378653806,1754944252885,-804.61,0.00019452,2]
[378653807,1754944252895,-460.0,0.00019452,2]
[378653808,1754944252905,-460.0,0.00019452,2]
[378653809,1754944252915,-460.0,0.00019452,2]
[378653810,1754944252925,-460.0,0.00019452,2]
[378653811,1754944252936,-151.0,0.00019452,2]
[378653812,1754944252946,-460.0,0.00019452,2]
[378653813,1754944252956,-151.0,0.00019452,2]
[378653814,1754944252965,-460.0,0.00019452,2]
[378653815,1754944252975,-151.0,0.00019452,2]
[378653816,1754944252985,-500.0,0.00019452,2]
[378653817,1754944252994,-500.0,0.00019473,2]
[378653818,1754944253003,-500.0,0.00019473,2]
[378653819,1754944253013,-150.0,0.00019473,2]
[378653820,1754944253022,-500.0,0.00019473,2]
[378653821,1754944253031,-341.62190171,0.00019473,2]
[378653822,1754944253041,-202.5473623,0.00019473,2]
[378653823,1754944253050,-158.46471794,0.00019473,2]
[378653824,1754944253060,-157.04278845,0.00019473,2]
[378653825,1754944253070,-158.44868159,0.00019473,2]
[378653826,1754944253080,-158.46538666,0.00019473,2]
[378653827,1754944253090,-160.06669641,0.00019473,2]
[378653828,1754944253101,-505.25769152,0.00019473,2]
[378653829,1754944253112,-340.52011149,0.00019473,2]
[378653830,1754944253122,-260.55026,0.00019473,2]
[378653831,1754944253132,-158.04855829,0.00019473,2]
[378653832,1754944253142,-500.0,0.00019473,2]
[378653833,1754944253151,-159.45114521,0.00019473,2]
[378653834,1754944253161,-158.12880838,0.00019473,2]
[378653835,1754944253170,-158.46444877,0.00019473,2]
[378653836,1754944253180,-165.05050708,0.00019473,2]
[378653837,1754944253197,-500.0,0.00019473,2]
[378653838,1754944253217,-158.46577498,0.00019473,2]
[378653839,1754944253237,-158.04855828,0.00019473,2]
[378653840,1754944253249,-500.0,0.00019473,2]
[378653841,1754944253259,-500.0,0.00019473,2]
[378653842,1754944253269,-500.0,0.00019473,2]
[378653843,1754944253279,-500.0,0.00019473,2]
[378653844,1754944253288,-500.0,0.00019473,2]
[378653845,1754944253298,-500.0,0.00019473,2]
[378653846,1754944253307,-160.46192181,0.00019473,2]
[378653847,1754944253316,-185.25659566,0.00019473,2]
[378653848,1754944253325,-504.04152628,0.00019473,2]
[378653849,1754944253336,-500.0,0.00019473,2]
[378653850,1754944253345,-168.72970159,0.00019473,2]
[378653851,1754944253355,-500.0,0.00019473,2]
[378653852,1754944253364,-500.0,0.00019473,2]
[378653853,1754944253373,-500.0,0.00019473,2]
[378653854,1754944253382,-500.0,0.00019473,2]
[378653855,1754944253392,-500.0,0.00019473,2]
[378653856,1754944253401,-500.0,0.00019473,2]
[378653857,1754944253411,-501.46256496,0.00019473,2]
[378653858,1754944253420,-500.0,0.00019473,2]
[378653859,1754944253429,-500.0,0.00019473,2]
[378653860,1754944253439,-500.0,0.00019473,2]
[378653861,1754944253448,-500.0,0.00019473,2]
[378653862,1754944253458,-603.34314445,0.00019473,2]
[378653863,1754944253467,-500.0,0.00019473,2]
[378653864,1754944253477,-500.0,0.00019473,2]
[378653865,1754944253486,-157.46260862,0.00019473,2]
[378653866,1754944253495,-160.06638324,0.00019473,2]
[378653867,1754944253505,-160.17133691,0.00019473,2]
[378653868,1754944253514,-340.09270154,0.00019473,2]
[378653869,1754944253524,-160.06680905,0.00019473,2]
[378653870,1754944253533,-621.55254894,0.00019473,2]
[378653871,1754944253542,-168.46954688,0.00019473,2]
[378653872,1754944253552,-188.47570756,0.00019473,2]
[378653873,1754944253561,-158.46341349,0.00019473,2]
[378653874,1754944253570,-160.06318468,0.00019473,2]
[378653875,1754944253580,-160.04917295,0.00019473,2]
[378653876,1754944253590,-500.0,0.00019473,2]
[378653877,1754944253599,-340.91787696,0.00019473,2]
[378653878,1754944253609,-400.13434124,0.00019473,2]
[378653879,1754944253619,-500.0,0.00019473,2]
[378653880,1754944253628,-248.49009127,0.00019473,2]
[378653881,1754944253637,-158.04855828,0.00019473,2]
[378653882,1754944253646,-160.46559195,0.00019473,2]
[378653883,1754944253655,-500.0,0.00019473,2]
[378653884,1754944253665,-500.0,0.00019473,2]
[378653885,1754944253674,-500.0,0.00019473,2]
[378653886,1754944253684,-158.46166641,0.00019473,2]
[378653887,1754944253693,-500.0,0.00019473,2]
[378653888,1754944253702,-258.42704119,0.00019473,2]
[378653889,1754944253711,-154.43239774,0.00019473,2]
[378653890,1754944253720,-500.0,0.00019473,2]
[378653891,1754944253730,-500.78623683,0.00019473,2]
[378653892,1754944253739,-500.0,0.00019473,2]
[378653893,1754944253748,-500.0,0.00019473,2]
[378653894,1754944253757,-445.11431374,0.00019473,2]
[378653895,1754944253766,-500.0,0.00019473,2]
[378653896,1754944253775,-500.0,0.00019473,2]
[378653897,1754944253784,-500.0,0.00019473,2]
[378653898,1754944253794,-500.0,0.00019473,2]
[378653899,1754944253803,-500.0,0.00019473,2]
[378653900,1754944253814,-500.0,0.00019473,2]
[378653901,1754944253824,-216.82734154,0.00019473,2]
[378653902,1754944253834,-500.0,0.00019473,2]
[378653903,1754944253843,-500.0,0.00019473,2]
[378653904,1754944253854,-500.0,0.00019473,2]
[378653905,1754944253910,-500.0,0.00019473,2]
[378653906,1754944253919,-500.0,0.00019473,2]
[378653907,1754944253928,-500.0,0.00019473,2]
[378653908,1754944253937,-500.0,0.00019473,2]
[378653909,1754944253946,-500.0,0.00019473,2]
[378653910,1754944253955,-173.54530953,0.00019473,2]
[378653911,1754944253964,-500.0,0.00019473,2]
[378653912,1754944253973,-500.0,0.00019473,2]
[378653913,1754944253982,-521.33546473,0.00019473,2]
[378653914,1754944253991,-500.0,0.00019473,2]
[378653915,1754944254000,-500.0,0.00019473,2]
[378653916,1754944254009,-500.0,0.00019473,2]
[378653917,1754944254018,-448.81982586,0.00019473,2]
[378653918,1754944254027,-500.0,0.00019473,2]
[378653919,1754944254036,-151.0,0.00019473,2]
[378653920,1754944254045,-151.0,0.00019473,2]
[378653921,1754944254054,-151.0,0.00019473,2]
[378653922,1754944254064,-151.0,0.00019473,2]
[378653923,1754944254073,-151.0,0.00019473,2]
[378653924,1754944254083,-151.0,0.00019473,2]
[378653925,1754944254092,-2124.623818,0.00019473,2]
[378653926,1754944254102,-2124.623818,0.00019473,2]
[378653927,1754944254111,-151.0,0.000195,2]
[378653928,1754944254120,-151.0,0.000195,2]
[378653929,1754944254130,-2016.64646436,0.000195,2]
[378653930,1754944254139,-151.0,0.000196,2]
[378653931,1754944254148,-20252.38884843,0.00019625,2]
[378653932,1754944254157,-151.0,0.000197,2]
[378653933,1754944254166,-1500.0,0.00019712,2]
[378653934,1754944254175,-1000.0,0.00019721,2]
[378653935,1754944254184,-1000.0,0.00019721,2]
[378653936,1754944254194,-500.0,0.00019721,2]
[378653937,1754944254203,-1000.0,0.00019721,2]
[378653938,1754944254213,-1000.0,0.00019721,2]
[378653939,1754944254222,-1000.0,0.00019721,2]
[378653940,1754944254231,-1000.0,0.00019721,2]
[378653941,1754944254240,-547.10620068,0.00019721,2]
[378653942,1754944254250,-1000.0,0.00019723,5]
[378653943,1754944254259,-200.0,0.00019725,2]
[378653944,1754944254268,-500.0,0.00019725,2]
[378653945,1754944254277,-500.0,0.00019725,2]
[378653946,1754944254287,-500.0,0.00019725,2]
[378653947,1754944254297,-500.0,0.00019725,2]
[378653948,1754944254306,-500.0,0.00019725,2]
[378653949,1754944254315,-500.0,0.00019725,2]
[378653950,1754944254324,-500.0,0.00019725,2]
[378653951,1754944254334,-500.0,0.00019725,2]
[378653952,1754944254343,-500.0,0.00019725,2]
[378653953,1754944254352,-500.0,0.00019725,2]
[378653954,1754944254362,-500.0,0.00019725,2]
[378653955,1754944254371,-186.0733054,0.00019725,2]
[378653956,1754944254380,-500.0,0.00019725,2]
[378653957,1754944254390,-500.0,0.00019725,2]
[378653958,1754944254399,-500.0,0.00019725,2]
[378653959,1754944254408,-500.0,0.00019725,2]
[378653960,1754944254417,-500.0,0.00019725,2]
[378653961,1754944254427,-550.0,0.00019725,2]
[378653962,1754944254436,-500.0,0.00019725,2]
[378653963,1754944254446,-151.0,0.00019725,2]
[378653964,1754944254456,-154.13560178,0.00019726,2]
[378653965,1754944254465,-200.10021766,0.00019726,2]
[378653966,1754944254475,-500.0,0.00019726,2]
[378653967,1754944254484,-559.90489718,0.00019726,2]
[378653968,1754944254494,-500.0,0.00019726,2]
[378653969,1754944254504,-151.0,0.00019726,2]
[378653970,1754944254513,-151.82019378,0.00019726,2]
[378653971,1754944254522,-151.0,0.00019726,2]
[378653972,1754944254531,-596.08646877,0.00019726,2]
[378653973,1754944254540,-151.0,0.00019726,2]
[378653974,1754944254550,-500.0,0.00019726,2]
[378653975,1754944254559,-151.0,0.00019726,2]
[378653976,1754944254568,-500.0,0.00019726,2]
[378653977,1754944254577,-151.0,0.00019726,2]
[378653978,1754944254587,-255.0,0.00019726,2]
[378653979,1754944254597,-199.73992829,0.00019726,2]
[378653980,1754944254606,-151.0,0.00019726,2]
[378653981,1754944254616,-500.0,0.00019726,2]
[378653982,1754944254625,-500.0,0.00019726,2]
[378653983,1754944254634,-489.45452389,0.00019726,2]
[378653984,1754944254643,-151.0,0.00019726,2]
[378653985,1754944254653,-151.0,0.00019726,2]
[378653986,1754944254662,-151.0,0.00019726,2]
[378653987,1754944254672,-151.0,0.00019726,2]
[378653988,1754944254681,-151.0,0.00019726,2]
[378653989,1754944254690,-460.0,0.00019726,2]
[378653990,1754944254699,-460.0,0.00019726,2]
[378653991,1754944254708,-460.0,0.00019726,2]
[378653992,1754944254718,-473.00876565,0.00019726,2]
[378653993,1754944254727,-151.0,0.00019726,2]
[378653994,1754944254737,-607.64036753,0.00019726,2]
[378653995,1754944254746,-460.0,0.00019726,2]
[378653996,1754944254755,-460.0,0.00019726,2]
[378653997,1754944254764,-460.0,0.00019726,2]
[378653998,1754944254774,-460.0,0.00019726,2]
[378653999,1754944254783,-460.0,0.00019726,2]
[378654000,1754944254792,-460.0,0.00019726,2]
[378654001,1754944254802,-460.0,0.00019726,2]
[378654002,1754944254812,-460.0,0.00019726,2]
[378654003,1754944254823,-460.0,0.00019726,2]
[378654004,1754944254833,-460.0,0.00019726,2]
[378654005,1754944254843,-460.0,0.00019726,2]
[378654006,1754944254852,-460.0,0.00019726,2]
[378654007,1754944254862,-503.14,0.00019726,2]
[378654008,1754944254871,-460.0,0.00019726,2]
[378654009,1754944254881,-460.0,0.00019726,2]
[378654010,1754944254891,-460.0,0.00019726,2]
[378654011,1754944254901,-467.18,0.00019726,2]
[378654012,1754944254911,-1028.23,0.00019726,2]
[378654013,1754944254920,-151.0,0.00019726,2]
[378654014,1754944254930,-460.0,0.00019726,2]
[378654015,1754944254939,-460.0,0.00019726,2]
[378654016,1754944254948,-460.0,0.00019726,2]
[378654017,1754944254957,-941.44,0.00019726,2]
[378654018,1754944254966,-460.0,0.00019726,2]
[378654019,1754944254975,-151.0,0.00019726,2]
[378654020,1754944254984,-151.0,0.00019726,2]
[378654021,1754944254993,-460.0,0.00019726,2]
[378654022,1754944255003,-151.0,0.00019726,2]
[378654023,1754944255012,-151.0,0.00019726,2]
[378654024,1754944255022,-460.0,0.00019726,2]
[378654025,1754944255031,-1288.89,0.00019726,2]
[378654026,1754944255041,-460.0,0.00019726,2]
[378654027,1754944255050,-472.71,0.00019726,2]
[378654028,1754944255060,-460.0,0.00019726,2]
[378654029,1754944255069,-460.0,0.00019726,2]
[378654030,1754944255079,-460.0,0.00019726,2]
[378654031,1754944255090,-584.65,0.00019726,2]
[378654032,1754944255099,-460.0,0.00019726,2]
[378654033,1754944255109,-460.0,0.00019726,2]
[378654034,1754944255118,-151.0,0.00019726,2]
[378654035,1754944255127,-151.0,0.00019726,2]
[378654036,1754944255136,-406.07562561,0.00019726,2]
[378654037,1754944255146,-460.0,0.00019726,2]
[378654038,1754944255155,-151.0,0.00019726,2]
[378654039,1754944255165,-151.0,0.00019726,2]
[378654040,1754944255175,-460.0,0.00019726,2]
[378654041,1754944255184,-460.0,0.00019726,2]
[378654042,1754944255193,-460.0,0.00019726,2]
[378654043,1754944255208,-460.0,0.00019726,2]
[378654044,1754944255219,-151.0,0.00019726,2]
[378654045,1754944255228,-460.0,0.00019726,2]
[378654046,1754944255238,-460.0,0.00019726,2]
[378654047,1754944255247,-460.0,0.00019726,2]
[378654048,1754944255257,-460.0,0.00019726,2]
[378654049,1754944255266,-462.17,0.00019726,2]
[378654050,1754944255275,-3532.8,0.00019726,2]
[378654051,1754944255284,-221.76112064,0.00019726,2]
[378654052,1754944255293,-460.0,0.00019726,2]
[378654053,1754944255302,-460.0,0.00019726,2]
[378654054,1754944255312,-460.0,0.00019726,2]
[378654055,1754944255320,-460.0,0.00019726,2]
[378654056,1754944255330,-460.0,0.00019726,2]
[378654057,1754944255339,-460.0,0.00019726,2]
[378654058,1754944255348,-176.61955206,0.00019726,2]
[378654059,1754944255358,-460.0,0.00019726,2]